fUSD/lending_fUSD_20240626
["ID","MTS","AMOUNT","RATE_DAILY","PERIOD"]
[330432751,1719396646815,-584.03865,0.000208,2]
[330432753,1719396646825,-440.140798,0.000208,2]
[330432755,1719396646837,-440.140798,0.000208,2]
[330432757,1719396646847,-151.0,0.000208,2]
[330432759,1719396646857,-151.0,0.000208,2]
[330432761,1719396646866,-151.0,0.000208,2]
[330432763,1719396646876,-151.0,0.000208,2]
[330432765,1719396646888,-504.376636,0.000208,2]
[330432768,1719396646899,-504.376636,0.000208,2]
[330432770,1719396646908,-151.0,0.000208,2]
[330432772,1719396646921,-255.916376,0.000208,2]
[330432774,1719396646932,-255.916376,0.000208,2]
[330432776,1719396646943,-235.889473,0.000208,2]
[330432778,1719396646953,-235.889473,0.000208,2]
[330432780,1719396646963,-151.0,0.000208,2]
[330432782,1719396646975,-151.0,0.000208,2]
[330432784,1719396646984,-151.0,0.000208,2]
[330432786,1719396646994,-151.0,0.000208,2]
[330432789,1719396647005,-211.778098,0.000208,2]
[330432791,1719396647015,-151.0,0.000208,2]
[330432793,1719396647025,-211.778098,0.000208,2]
[330432794,1719396647035,-433.664823,0.000208,2]
[330432797,1719396647046,-151.0,0.000208,2]
[330432799,1719396647056,-433.664823,0.000208,2]
[330432800,1719396647065,-151.0,0.000208,2]
[330432801,1719396647075,-1073.716606,0.000208,2]
[330432802,1719396647084,-1073.716606,0.000208,2]
[330432803,1719396647094,-151.0,0.000208,2]
[330432804,1719396647104,-151.0,0.000208,2]
[330432805,1719396647113,-276.56194,0.000208,2]
[330432806,1719396647123,-276.56194,0.000208,2]
[330432807,1719396647132,-263.432824,0.000208,2]
[330432808,1719396647141,-475.118793,0.000208,2]
[330432809,1719396647151,-475.118793,0.000208,2]
[330432810,1719396647162,-151.0,0.000208,2]
[330432811,1719396647171,-151.0,0.000208,2]
[330432812,1719396647181,-90498.09823424,0.000208,3]
[330432813,1719396647198,-177522.23339476,0.000208,3]
[330432814,1719396647208,-151.827949,0.000208,2]
[330432815,1719396647218,-151.827949,0.000208,2]
[330432816,1719396647228,-151.0,0.000208,2]
[330432817,1719396647239,-151.0,0.000208,2]
[330432818,1719396647248,-10000.0,0.000208,2]
[330432819,1719396647259,-10000.0,0.000208,2]
[330432820,1719396647269,-968.54872,0.000208,2]
[330432821,1719396647279,-151.0,0.000208,2]
[330432822,1719396647289,-968.54872,0.000208,2]
[330432823,1719396647299,-543.043496,0.000208,2]
[330432824,1719396647309,-543.043496,0.000208,2]
[330432825,1719396647319,-203.476551,0.000208,2]
[330432826,1719396647329,-261.47671,0.000208,2]
[330432827,1719396647340,-203.476551,0.000208,2]
[330432828,1719396647350,-261.47671,0.000208,2]
[330432829,1719396647360,-151.0,0.000208,2]
[330432830,1719396647372,-159.833909,0.000208,2]
[330432831,1719396647381,-150.0,0.00020801,2]
[330432832,1719396647391,-300.0,0.00020804,2]
[330432833,1719396647402,-151.0,0.00020804,2]
[330432834,1719396647412,-151.0,0.00020804,2]
[330432835,1719396647422,-151.0,0.00020804,2]
[330432836,1719396647432,-151.0,0.00020804,2]
[330432837,1719396647442,-152.422703,0.00020804,2]
[330432838,1719396647452,-151.0,0.00020804,2]
[330432839,1719396647462,-152.422703,0.00020804,2]
[330432840,1719396647472,-151.0,0.00020804,2]
[330432841,1719396647482,-167.002005,0.00020804,2]
[330432842,1719396647492,-167.002005,0.00020804,2]
[330432843,1719396647502,-151.0,0.00020804,2]
[330432844,1719396647512,-1173.8729059,0.00020806,2]
[330432845,1719396647522,-4610.04801512,0.00020809,2]
[330432846,1719396647531,-1500.0,0.00020819,2]
[330432847,1719396647542,-1500.0,0.00020833,2]
[330432848,1719396647553,-1500.0,0.00020834,2]
[330432849,1719396647564,-1500.0,0.00020834,2]
[330432850,1719396647575,-300.0,0.0002085,2]
[330432851,1719396647585,-1500.0,0.00020866,2]
[330432852,1719396647595,-151.0,0.00020866,2]
[330432853,1719396647604,-151.0,0.00020866,2]
[330432854,1719396647614,-597.509391,0.00020866,2]
[330432855,1719396647623,-597.509391,0.00020866,2]
[330432856,1719396647633,-151.0,0.00020866,2]
[330432857,1719396647643,-151.0,0.00020866,2]
[330432858,1719396647653,-189.815174,0.00020866,2]
[330432859,1719396647662,-151.0,0.00020866,2]
[330432860,1719396647672,-1367.15404,0.00020866,2]
[330432861,1719396647681,-1367.15404,0.00020866,2]
[330432862,1719396647691,-1500.0,0.00020901,2]
[330432863,1719396647700,-1500.0,0.00020921,2]
[330432864,1719396647709,-1785.589286,0.00020921,2]
[330432865,1719396647720,-1785.589286,0.00020921,2]
[330432866,1719396647730,-2506.04597,0.00020921,2]
[330432867,1719396647739,-2506.04597,0.00020921,2]
[330432868,1719396647749,-210.32553,0.00020921,2]
[330432869,1719396647762,-210.32553,0.00020921,2]
[330432870,1719396647772,-300.0,0.00020927,2]
[330432871,1719396647783,-1500.0,0.00020931,2]
[330432872,1719396647793,-300.0,0.00020939,2]
[330432873,1719396647803,-1500.0,0.00020947,2]
[330432874,1719396647814,-300.0,0.00020948,2]
[330432875,1719396647823,-1500.0,0.00020948,2]
[330432876,1719396647832,-300.0,0.00020956,2]
[330432877,1719396647843,-300.0,0.00020959,2]
[330432878,1719396647853,-150.0,0.0002096,2]
[330432879,1719396647862,-1500.0,0.00020976,2]
[330432880,1719396647872,-150.0,0.0002098,2]
[330432881,1719396647883,-300.0,0.0002099,2]
[330432882,1719396647896,-1500.0,0.00020992,2]
[330432883,1719396647906,-300.0,0.00020995,2]
[330432884,1719396647916,-1250.0,0.00021,2]
[330432885,1719396647927,-202.692374,0.00021,2]
[330432886,1719396647939,-150.0,0.00021001,2]
[330432887,1719396647949,-300.0,0.00021002,2]
[330432888,1719396647959,-1500.0,0.00021009,2]
[330432889,1719396647971,-599.681482,0.00021011,2]
[330432890,1719396647982,-599.681482,0.00021011,2]
[330432891,1719396647993,-14880.01790881,0.00021011,2]
[330432892,1719396648004,-1500.0,0.00021025,2]
[330432893,1719396648014,-4610.04801512,0.00021027,2]
[330432894,1719396648024,-1500.0,0.00021035,2]
[330432895,1719396648034,-150.0,0.00021043,2]
[330432896,1719396648046,-1500.0,0.00021056,2]
[330432897,1719396648057,-504.23,0.00021083,2]
[330432898,1719396648067,-150.0,0.00021084,2]
[330432899,1719396648077,-150.0,0.00021134,2]
[330432900,1719396648087,-150.0,0.00021141,2]
[330432901,1719396648097,-306.64439152,0.00021148,2]
[330432902,1719396648107,-1500.0,0.00021152,2]
[330432903,1719396648119,-300.0,0.00021154,2]
[330432904,1719396648130,-1500.0,0.00021161,2]
[330432905,1719396648140,-150.0,0.00021191,2]
[330432906,1719396648153,-150.0,0.00021214,2]
[330432907,1719396648162,-150.0,0.00021222,2]
[330432908,1719396648173,-1500.0,0.00021226,2]
[330432909,1719396648183,-4610.04801512,0.00021245,2]
[330432910,1719396648192,-1500.0,0.00021256,2]
[330432911,1719396648202,-150.0,0.00021283,2]
[330432912,1719396648211,-1500.0,0.00021296,2]
[330432913,1719396648221,-1500.0,0.00021302,2]
[330432914,1719396648230,-150.0,0.00021303,2]
[330432915,1719396648240,-150.0,0.00021306,2]
[330432916,1719396648250,-150.0,0.00021308,2]
[330432917,1719396648260,-150.0,0.00021309,2]
[330432918,1719396648272,-150.0,0.00021313,2]
[330432919,1719396648284,-178.16724288,0.00021317,2]
[330432920,1719396648296,-169.305,0.00021321,2]
[330432921,1719396648307,-150.405604,0.00021321,2]
[330432922,1719396648319,-200.540807,0.00021321,2]
[330432923,1719396648329,-157.773891,0.00021321,2]
[330432924,1719396648341,-150.0,0.00021323,2]
[330432925,1719396648350,-150.0,0.00021326,2]
[330432926,1719396648359,-1500.0,0.0002133,2]
[330432927,1719396648373,-1500.0,0.00021335,2]
[330432928,1719396648383,-159.951172,0.00021335,2]
[330432929,1719396648392,-159.951172,0.00021335,2]
[330432930,1719396648403,-151.0,0.00021335,2]
[330432931,1719396648414,-1227.46271,0.00021335,2]
[330432932,1719396648424,-151.0,0.00021335,2]
[330432933,1719396648435,-1227.46271,0.00021335,2]
[330432934,1719396648445,-654.959905,0.00021335,2]
[330432935,1719396648454,-151.0,0.00021335,2]
[330432936,1719396648464,-169.404168,0.00021335,2]
[330432937,1719396648474,-654.959905,0.00021335,2]
[330432938,1719396648484,-196.997103,0.00021335,2]
[330432939,1719396648493,-196.997103,0.00021335,2]
[330432940,1719396648503,-339.628778,0.00021335,2]
[330432941,1719396648513,-151.0,0.00021335,2]
[330432942,1719396648525,-339.628778,0.00021335,2]
[330432943,1719396648536,-151.0,0.00021335,2]
[330432944,1719396648546,-150.0,0.00021338,2]
[330432945,1719396648555,-150.0,0.00021342,2]
[330432946,1719396648564,-150.0,0.00021347,2]
[330432947,1719396648574,-150.0,0.00021353,2]
[330432948,1719396648585,-150.0,0.00021353,2]
[330432949,1719396648897,-150.0,0.00021364,2]
[330432950,1719396648907,-1500.0,0.00021388,2]
[330432951,1719396648916,-150.0,0.0002141,2]
[330432952,1719396648926,-300.0,0.00021418,2]
[330432953,1719396648939,-150.0,0.00021419,2]
[330432954,1719396648948,-150.0,0.0002142,2]
[330432955,1719396648957,-1500.0,0.00021422,2]
[330432956,1719396648967,-150.0,0.00021427,2]
[330432957,1719396648975,-150.0,0.00021428,2]
[330432958,1719396648985,-150.0,0.00021431,2]
[330432959,1719396648994,-150.0,0.00021442,2]
[330432960,1719396649003,-150.0,0.00021442,2]
[330432961,1719396649012,-150.0,0.00021446,2]
[330432962,1719396649021,-150.0,0.00021452,2]
[330432963,1719396649030,-300.0,0.00021453,2]
[330432964,1719396649040,-150.0,0.00021454,2]
[330432965,1719396649049,-150.0,0.00021461,2]
[330432966,1719396649059,-170.93841358,0.00021462,2]
[330432967,1719396649069,-150.0,0.00021463,2]
[330432968,1719396649079,-4610.04801512,0.00021464,2]
[330432969,1719396649088,-150.0,0.00021469,2]
[330432970,1719396649097,-150.0,0.00021484,2]
[330432971,1719396649107,-300.0,0.00021488,2]
[330432972,1719396649117,-150.0,0.00021496,2]
[330432973,1719396649127,-150.0,0.00021497,2]
[330432974,1719396649137,-1000.0,0.000215,2]
[330432975,1719396649146,-150.0,0.00021502,2]
[330432976,1719396649156,-1500.0,0.00021503,2]
[330432977,1719396649165,-150.0,0.00021504,2]
[330432978,1719396649174,-150.0,0.00021509,2]
[330432979,1719396649183,-150.0,0.00021514,2]
[330432980,1719396649192,-150.0,0.00021515,2]
[330432981,1719396649201,-150.0,0.0002152,2]
[330432982,1719396649210,-150.0,0.00021522,2]
[330432983,1719396649219,-1500.0,0.00021522,2]
[330432984,1719396649229,-150.0,0.00021527,2]
[330432985,1719396649238,-150.0,0.00021528,2]
[330432986,1719396649247,-150.0,0.00021528,2]
[330432987,1719396649257,-150.0,0.0002153,2]
[330432988,1719396649266,-1500.0,0.00021534,2]
[330432989,1719396649276,-1500.0,0.00021535,2]
[330432990,1719396649286,-150.0,0.00021539,2]
[330432991,1719396649298,-150.0,0.00021541,2]
[330432992,1719396649307,-1500.0,0.0002155,2]
[330432993,1719396649317,-150.0,0.00021553,2]
[330432994,1719396649328,-554.67497243,0.00021557,2]
[330432995,1719396649338,-150.0,0.00021558,2]
[330432996,1719396649347,-150.0,0.00021561,2]
[330432997,1719396649357,-150.0,0.00021563,2]
[330432998,1719396649367,-150.0,0.00021574,2]
[330432999,1719396649377,-150.0,0.00021576,2]
[330433000,1719396649387,-169.305,0.00021587,2]
[330433001,1719396649396,-150.0,0.00021588,2]
[330433002,1719396649408,-150.0,0.00021588,2]
[330433003,1719396649417,-150.0,0.00021591,2]
[330433004,1719396649427,-1500.0,0.00021591,2]
[330433005,1719396649436,-150.0,0.00021594,2]
[330433006,1719396649445,-150.0,0.00021597,2]
[330433007,1719396649455,-300.0,0.00021598,2]
[330433008,1719396649466,-150.0,0.00021599,2]
[330433009,1719396649475,-1500.0,0.00021601,2]
[330433010,1719396649484,-150.0,0.00021602,2]
[330433011,1719396649493,-150.0,0.00021603,2]
[330433012,1719396649502,-1500.0,0.00021604,2]
[330433013,1719396649511,-1500.0,0.00021607,2]
[330433014,1719396649521,-150.0,0.00021609,2]
[330433015,1719396649531,-150.0,0.00021612,2]
[330433016,1719396649542,-1500.0,0.00021614,2]
[330433017,1719396649551,-150.0,0.00021616,2]
[330433018,1719396649561,-150.0,0.00021616,2]
[330433019,1719396649570,-150.0,0.00021621,2]
[330433020,1719396649580,-150.0,0.00021625,2]
[330433021,1719396649591,-150.0,0.00021626,2]
[330433022,1719396649600,-150.0,0.00021628,2]
[330433023,1719396649609,-150.0,0.0002163,2]
[330433024,1719396649618,-300.0,0.00021639,2]
[330433025,1719396649628,-150.0,0.00021643,2]
[330433026,1719396649638,-155.34,0.00021644,2]
[330433027,1719396649648,-153.39,0.00021644,2]
[330433028,1719396649657,-448.75,0.00021644,2]
[330433029,1719396649666,-1500.0,0.00021648,2]
[330433030,1719396649675,-150.0,0.0002165,2]
[330433031,1719396649684,-150.0,0.00021653,2]
[330433032,1719396649693,-150.0,0.00021656,2]
[330433033,1719396649702,-150.0,0.00021663,2]
[330433034,1719396649711,-150.0,0.00021668,2]
[330433035,1719396649721,-150.0,0.00021669,2]
[330433036,1719396649731,-1500.0,0.00021673,2]
[330433037,1719396649740,-300.0,0.00021676,2]
[330433038,1719396649749,-150.405604,0.00021676,2]
[330433039,1719396649758,-150.0,0.00021678,2]
[330433040,1719396649768,-150.0,0.00021679,2]
[330433041,1719396649777,-2051.62166619,0.00021682,2]
[330433042,1719396650595,-309.15,0.00021682,2]
[330433043,1719396650648,-2249.27634893,0.00021682,2]
[330433044,1719396650657,-150.0,0.00021687,2]
[330433045,1719396650667,-150.0,0.0002169,2]
[330433046,1719396650677,-151.827949,0.0002169,2]
[330433047,1719396650686,-151.827949,0.0002169,2]
[330433048,1719396650695,-151.0,0.0002169,2]
[330433049,1719396650704,-12.184981,0.0002169,2]
[330433050,1719396650715,-138.815019,0.0002169,2]
[330433051,1719396650726,-1344.11972998,0.0002169,2]
[330433052,1719396650737,-8655.88027002,0.0002169,2]
[330433053,1719396650747,-10000.0,0.0002169,2]
[330433054,1719396650756,-968.54872,0.0002169,2]
[330433055,1719396650765,-151.0,0.0002169,2]
[330433056,1719396650775,-968.54872,0.0002169,2]
[330433057,1719396650784,-543.043496,0.0002169,2]
[330433058,1719396650793,-543.043496,0.0002169,2]
[330433059,1719396650803,-203.476551,0.0002169,2]
[330433060,1719396650814,-261.47671,0.0002169,2]
[330433061,1719396651083,-203.476551,0.0002169,2]
[330433062,1719396651095,-261.47671,0.0002169,2]
[330433063,1719396651104,-151.0,0.0002169,2]
[330433064,1719396651114,-300.0,0.00021691,2]
[330433065,1719396651124,-150.0,0.00021698,2]
[330433066,1719396651133,-150.0,0.00021702,2]
[330433067,1719396651142,-150.0,0.00021702,2]
[330433068,1719396651151,-150.0,0.00021703,2]
[330433069,1719396651162,-1500.0,0.00021709,2]
[330433070,1719396651172,-150.0,0.00021718,2]
[330433071,1719396651181,-300.0,0.00021718,2]
[330433072,1719396651190,-150.0,0.00021733,2]
[330433073,1719396651200,-150.0,0.00021737,2]
[330433074,1719396651210,-150.0,0.00021742,2]
[330433075,1719396651220,-150.0,0.00021743,2]
[330433076,1719396651230,-150.0,0.00021747,2]
[330433077,1719396651240,-1500.0,0.00021747,2]
[330433078,1719396651251,-151.0,0.00021747,2]
[330433079,1719396651260,-151.0,0.00021747,2]
[330433080,1719396651269,-151.0,0.00021747,2]
[330433081,1719396651279,-151.0,0.00021747,2]
[330433082,1719396651288,-152.422703,0.00021747,2]
[330433083,1719396651297,-151.0,0.00021747,2]
[330433084,1719396651306,-152.422703,0.00021747,2]
[330433085,1719396651315,-215.694772,0.00021747,2]
[330433086,1719396651324,-167.002005,0.00021747,2]
[330433087,1719396651333,-167.002005,0.00021747,2]
[330433088,1719396651346,-151.0,0.00021747,2]
[330433089,1719396651356,-150.0,0.00021754,2]
[330433090,1719396651365,-150.0,0.00021755,2]
[330433091,1719396651374,-1500.0,0.00021758,2]
[330433092,1719396651384,-150.0,0.00021761,2]
[330433093,1719396651393,-1500.0,0.00021762,2]
[330433094,1719396651403,-150.0,0.00021764,2]
[330433095,1719396651412,-150.0,0.00021775,2]
[330433096,1719396651421,-150.0,0.00021777,2]
[330433097,1719396651431,-150.0,0.00021777,2]
[330433098,1719396651440,-1500.0,0.00021784,2]
[330433099,1719396651449,-300.0,0.00021786,2]
[330433100,1719396651458,-1500.0,0.00021788,2]
[330433101,1719396651467,-150.0,0.00021791,2]
[330433102,1719396651477,-150.0,0.00021793,2]
[330433103,1719396651487,-150.0,0.00021798,2]
[330433104,1719396651497,-305.22875309,0.00021799,2]
[330433105,1719396651506,-946.55454585,0.000218,2]
[330433106,1719396651516,-150.0,0.00021804,2]
[330433107,1719396651525,-150.0,0.0002181,2]
[330433108,1719396651535,-150.0,0.00021811,2]
[330433109,1719396651544,-150.0,0.00021812,2]
[330433110,1719396651553,-150.0,0.00021817,2]
[330433111,1719396651563,-150.0,0.00021823,2]
[330433112,1719396651572,-150.0,0.00021825,2]
[330433113,1719396651581,-1500.0,0.00021827,2]
[330433114,1719396651598,-150.0,0.00021828,2]
[330433115,1719396651607,-150.0,0.00021828,2]
[330433116,1719396651616,-1500.0,0.00021831,2]
[330433117,1719396651626,-1500.0,0.00021836,2]
[330433118,1719396651636,-150.0,0.00021837,2]
[330433119,1719396651645,-150.0,0.00021839,2]
[330433120,1719396651655,-150.0,0.0002184,2]
[330433121,1719396651666,-300.0,0.00021842,2]
[330433122,1719396651677,-1500.0,0.00021843,2]
[330433123,1719396651687,-150.0,0.00021844,2]
[330433124,1719396651697,-150.0,0.00021844,2]
[330433125,1719396651706,-150.0,0.00021849,2]
[330433126,1719396651716,-150.0,0.0002185,2]
[330433127,1719396651725,-169.305,0.00021854,2]
[330433128,1719396651735,-1500.0,0.00021856,2]
[330433129,1719396651746,-150.0,0.00021857,2]
[330433130,1719396651756,-150.0,0.00021874,2]
[330433131,1719396651765,-150.0,0.00021878,2]
[330433132,1719396651775,-300.0,0.00021879,2]
[330433133,1719396651785,-150.0,0.0002188,2]
[330433134,1719396651795,-150.0,0.00021886,2]
[330433135,1719396651805,-300.0,0.00021892,2]
[330433136,1719396651814,-339.45186376,0.00021899,2]
[330433137,1719396651824,-151.0,0.000219,2]
[330433138,1719396651834,-151.0,0.000219,2]
[330433139,1719396651848,-4610.04801512,0.000219,2]
[330433140,1719396651857,-151.0,0.000219,2]
[330433141,1719396651867,-169.147715,0.000219,2]
[330433142,1719396651876,-151.0,0.000219,2]
[330433143,1719396651888,-259.81965,0.000219,2]
[330433144,1719396651899,-236.196,0.000219,2]
[330433145,1719396651908,-203.07802,0.000219,2]
[330433146,1719396651918,-236.196,0.000219,2]
[330433147,1719396651927,-151.0,0.000219,2]
[330433148,1719396651938,-151.0,0.000219,2]
[330433149,1719396651948,-151.0,0.000219,2]
[330433150,1719396651957,-151.0,0.000219,2]
[330433151,1719396651969,-584.03865,0.000219,2]
[330433152,1719396651978,-584.03865,0.000219,2]
[330433153,1719396651988,-440.140798,0.000219,2]
[330433154,1719396651997,-151.0,0.000219,2]
[330433155,1719396652007,-440.140798,0.000219,2]
[330433156,1719396652017,-151.0,0.000219,2]
[330433157,1719396652027,-151.0,0.000219,2]
[330433158,1719396652036,-151.0,0.000219,2]
[330433159,1719396652045,-504.376636,0.000219,2]
[330433160,1719396652055,-504.376636,0.000219,2]
[330433161,1719396652064,-151.0,0.000219,2]
[330433162,1719396652073,-255.916376,0.000219,2]
[330433163,1719396652083,-255.916376,0.000219,2]
[330433164,1719396652095,-235.889473,0.000219,2]
[330433165,1719396652105,-224.62080998,0.000219,2]
[330433166,1719396652115,-151.0,0.000219,2]
[330433167,1719396652124,-235.889473,0.000219,2]
[330433168,1719396652134,-151.0,0.000219,2]
[330433169,1719396652143,-151.0,0.000219,2]
[330433170,1719396652153,-151.0,0.000219,2]
[330433171,1719396652162,-211.778098,0.000219,2]
[330433172,1719396652171,-151.0,0.000219,2]
[330433173,1719396652181,-211.778098,0.000219,2]
[330433174,1719396652190,-433.664823,0.000219,2]
[330433175,1719396652199,-151.0,0.000219,2]
[330433176,1719396652209,-433.664823,0.000219,2]
[330433177,1719396652218,-151.0,0.000219,2]
[330433178,1719396652228,-1073.716606,0.000219,2]
[330433179,1719396652237,-1073.716606,0.000219,2]
[330433180,1719396652247,-151.0,0.000219,2]
[330433181,1719396652256,-151.0,0.000219,2]
[330433182,1719396652265,-1131.97229302,0.000219,2]
[330433183,1719396652275,-276.56194,0.000219,2]
[330433184,1719396652284,-276.56194,0.000219,2]
[330433185,1719396652294,-475.118793,0.000219,2]
[330433186,1719396652303,-475.118793,0.000219,2]
[330433187,1719396652313,-151.0,0.000219,2]
[330433188,1719396652323,-151.0,0.000219,2]
[330433189,1719396652333,-14880.01790881,0.000219,2]
[330433190,1719396652344,-151.0,0.000219,2]
[330433191,1719396652353,-151.0,0.000219,2]
[330433192,1719396652363,-597.509391,0.000219,2]
[330433193,1719396652373,-597.509391,0.000219,2]
[330433194,1719396652384,-183.31556253,0.000219,2]
[330433195,1719396652394,-151.0,0.000219,2]
[330433196,1719396652405,-151.0,0.000219,2]
[330433197,1719396652414,-151.0,0.000219,2]
[330433198,1719396652423,-1367.15404,0.000219,2]
[330433199,1719396652435,-1367.15404,0.000219,2]
[330433200,1719396652445,-250.0,0.000219,7]
[330433201,1719396652455,-250.0,0.000219,7]
[330433202,1719396652464,-250.0,0.000219,7]
[330433203,1719396652474,-250.0,0.000219,7]
[330433204,1719396652486,-250.0,0.000219,7]
[330433205,1719396652496,-250.0,0.000219,7]
[330433206,1719396652506,-250.0,0.000219,7]
[330433207,1719396652515,-250.0,0.000219,7]
[330433208,1719396652524,-324.3,0.000219,7]
[330433209,1719396652533,-279.68394856,0.000219,2]
[330433210,1719396652543,-150.0,0.00021909,2]
[330433211,1719396652552,-300.0,0.00021911,2]
[330433212,1719396652563,-150.0,0.00021913,2]
[330433213,1719396652573,-150.0,0.00021916,2]
[330433214,1719396652582,-150.0,0.00021917,2]
[330433215,1719396652593,-352.10935505,0.00021917,2]
[330433216,1719396652603,-265.64,0.00021918,2]
[330433217,1719396652613,-205.038512,0.00021918,2]
[330433218,1719396652624,-205.038512,0.00021918,2]
[330433219,1719396652643,-205.038512,0.00021918,2]
[330433220,1719396652663,-205.038512,0.00021918,2]
[330433221,1719396652683,-205.038512,0.00021918,2]
[330433222,1719396652699,-205.038512,0.00021918,2]
[330433223,1719396652708,-2443.258192,0.00021918,2]
[330433224,1719396652722,-185.98142769,0.00021918,2]
[330433225,1719396652736,-267.65633129,0.00021918,2]
[330433226,1719396652747,-259.9332309,0.00021918,2]
[330433227,1719396652759,-1729.68720212,0.00021918,2]
[330433228,1719396652769,-438.90922788,0.00021918,2]
[330433229,1719396652780,-2004.34896412,0.00021918,2]
[330433230,1719396652790,-2443.258192,0.00021918,2]
[330433231,1719396652800,-2443.258192,0.00021918,2]
[330433232,1719396652810,-2443.258192,0.00021918,2]
[330433233,1719396652819,-2443.258192,0.00021918,2]
[330433234,1719396652828,-2443.258192,0.00021918,2]
[330433235,1719396652837,-151.0,0.00021918,7]
[330433236,1719396652849,-151.0,0.00021918,7]
[330433237,1719396652858,-151.0,0.00021918,7]
[330433238,1719396652868,-151.0,0.00021918,7]
[330433239,1719396652878,-151.0,0.00021918,7]
[330433240,1719396652889,-151.0,0.00021918,7]
[330433241,1719396652910,-151.0,0.00021918,7]
[330433242,1719396652921,-188.742024,0.00021918,7]
[330433243,1719396652931,-151.0,0.00021918,7]
[330433244,1719396652940,-151.0,0.00021918,7]
[330433245,1719396652950,-151.0,0.00021918,7]
[330433246,1719396652960,-271.684292,0.00021918,7]
[330433247,1719396652969,-151.0,0.00021918,7]
[330433248,1719396652979,-277.437034,0.00021918,7]
[330433249,1719396652991,-277.437034,0.00021918,7]
[330433250,1719396653006,-151.0,0.00021918,7]
[330433251,1719396653015,-236.947213,0.00021918,7]
[330433252,1719396653024,-406.637294,0.00021918,7]
[330433253,1719396653036,-151.0,0.00021918,7]
[330433254,1719396653050,-236.947213,0.00021918,7]
[330433255,1719396653062,-406.637294,0.00021918,7]
[330433256,1719396653072,-205.038512,0.00021918,7]
[330433257,1719396653082,-151.0,0.00021918,7]
[330433258,1719396653093,-205.038512,0.00021918,7]
[330433259,1719396653102,-187.92,0.00021918,7]
[330433260,1719396653112,-231.487067,0.00021918,7]
[330433261,1719396653122,-187.92,0.00021918,7]
[330433262,1719396653132,-231.487067,0.00021918,7]
[330433263,1719396653141,-165.319449,0.00021918,7]
[330433264,1719396653150,-151.0,0.00021918,7]
[330433265,1719396653160,-165.319449,0.00021918,7]
[330433266,1719396653169,-215.346535,0.00021918,7]
[330433267,1719396653178,-215.346535,0.00021918,7]
[330433268,1719396653188,-150.0,0.0002192,2]
[330433269,1719396653198,-150.0,0.0002192,2]
[330433270,1719396653207,-150.0,0.00021922,2]
[330433271,1719396653217,-150.0,0.00021924,2]
[330433272,1719396653226,-150.0,0.00021925,2]
[330433273,1719396653235,-1500.0,0.00021926,2]
[330433274,1719396653244,-150.0,0.00021928,2]
[330433275,1719396653253,-158.8554683,0.00021929,2]